[Event "Titled Tuesday Blitz October 5 2021"]
[White "Iljushina, Olga"]
[Black "Weetik, Vjacheslav"]
[WhiteFideId "4152280"]
[BlackFideId "4153472"]
[WhiteElo "1937"]
[BlackElo "2469"]
[Result "0-1"]
[Round "04"]
[TimeControl "180+1"]
[Date "2021.10.05"]
[WhiteClock "0:00:12"]
[BlackClock "0:00:06"]

1. d4 {[%clk 0:03:00]}  Nf6 {[%clk 0:02:56]} 2. c4 {[%clk 0:03:01]}  g6 {[%clk 0:02:56]} 3. Nc3 {[%clk 0:03:01]}  Bg7 {[%clk 0:02:57]} 4. e4 {[%clk 0:03:01]}  d6 {[%clk 0:02:57]} 5. Be3 {[%clk 0:02:59]}  O-O {[%clk 0:02:56]} 6. Qd2 {[%clk 0:02:59]}  Ng4 {[%clk 0:02:50]} 7. Bg5 {[%clk 0:02:58]}  c5 {[%clk 0:02:28]} 8. d5 {[%clk 0:02:44]}  f5 {[%clk 0:01:54]} 9. h3 {[%clk 0:02:31]}  Ne5 {[%clk 0:01:39]} 10. Bh6 {[%clk 0:02:15]}  Bxh6 {[%clk 0:01:30]} 11. Qxh6 {[%clk 0:02:15]}  f4 {[%clk 0:01:29]} 12. Nf3 {[%clk 0:02:00]}  Nxf3+ {[%clk 0:01:22]} 13. gxf3 {[%clk 0:02:00]}  Nd7 {[%clk 0:01:23]} 14. h4 {[%clk 0:01:54]}  Ne5 {[%clk 0:01:21]} 15. Be2 {[%clk 0:01:52]}  e6 {[%clk 0:00:40]} 16. dxe6 {[%clk 0:01:44]}  Bxe6 {[%clk 0:00:38]} 17. h5 {[%clk 0:01:38]}  Qf6 {[%clk 0:00:22]} 18. hxg6 {[%clk 0:01:13]}  Qxg6 {[%clk 0:00:21]} 19. O-O-O {[%clk 0:01:10]}  Qxh6 {[%clk 0:00:14]} 20. Rxh6 {[%clk 0:01:10]}  Bxc4 {[%clk 0:00:15]} 21. Bxc4+ {[%clk 0:00:50]}  Nxc4 {[%clk 0:00:15]} 22. b3 {[%clk 0:00:50]}  Ne5 {[%clk 0:00:15]} 23. Rdxd6 {[%clk 0:00:47]}  Rad8 {[%clk 0:00:12]} 24. Rxd8 {[%clk 0:00:37]}  Rxd8 {[%clk 0:00:13]} 25. Nd5 {[%clk 0:00:37]}  Nxf3 {[%clk 0:00:14]} 26. Kc2 {[%clk 0:00:28]}  Nd4+ {[%clk 0:00:13]} 27. Kd3 {[%clk 0:00:27]}  f3 {[%clk 0:00:14]} 28. Kc4 {[%clk 0:00:26]}  Kg7 {[%clk 0:00:13]} 29. Rh3 {[%clk 0:00:24]}  b6 {[%clk 0:00:13]} 30. Ne3 {[%clk 0:00:20]}  Re8 {[%clk 0:00:11]} 31. Rh4 {[%clk 0:00:19]}  Kg6 {[%clk 0:00:11]} 32. Nd5 {[%clk 0:00:19]}  h5 {[%clk 0:00:10]} 33. Rxh5 {[%clk 0:00:19]}  Kxh5 {[%clk 0:00:10]} 34. Nf6+ {[%clk 0:00:19]}  Kh4 {[%clk 0:00:10]} 35. Nxe8 {[%clk 0:00:19]}  Kh3 {[%clk 0:00:11]} 36. Nf6 {[%clk 0:00:18]}  Kg2 {[%clk 0:00:07]} 37. Ng4 {[%clk 0:00:18]}  Kh3 {[%clk 0:00:03]} 38. Ne5 {[%clk 0:00:19]}  Kg2 {[%clk 0:00:03]} 39. Nd3 {[%clk 0:00:19]}  Kf1 {[%clk 0:00:04]} 40. e5 {[%clk 0:00:19]}  Ke2 {[%clk 0:00:04]} 41. Nf4+ {[%clk 0:00:13]}  Kxf2 {[%clk 0:00:04]} 42. e6 {[%clk 0:00:14]}  Nxe6 {[%clk 0:00:03]} 43. Nxe6 {[%clk 0:00:14]}  Ke1 {[%clk 0:00:03]} 44. Nf4 {[%clk 0:00:12]}  f2 {[%clk 0:00:04]} 45. Nd3+ {[%clk 0:00:12]}  Ke2 {[%clk 0:00:05]} 46. Nxf2 {[%clk 0:00:12]}  Kxf2 {[%clk 0:00:06]} 47. b4 {[%clk 0:00:13]}  cxb4 {[%clk 0:00:06]} 48. Kxb4 {[%clk 0:00:13]}  a6 {[%clk 0:00:06]} 49. Kc4 {[%clk 0:00:12]}  Ke3 {[%clk 0:00:06]} 50. Kd5 {[%clk 0:00:12]}  Kd3 {[%clk 0:00:06]} 51. a4 {[%clk 0:00:12]}  Kc3 {[%clk 0:00:05]} 52. Kc6 {[%clk 0:00:13]}  Kb4 {[%clk 0:00:04]} 53. Kxb6 {[%clk 0:00:13]}  a5 {[%clk 0:00:05]} 54. Kc6 {[%clk 0:00:11]}  Kxa4 {[%clk 0:00:05]} 55. Kc5 {[%clk 0:00:12]}  Kb3 {[%clk 0:00:06]} 0-1


[Site "https://www.chess.com"]

[Event "Titled Tuesday Blitz October 5 2021"]
[White "Indjic, Aleksandar"]
[Black "Mirzoev, Azer"]
[WhiteFideId "911925"]
[BlackFideId "13400304"]
[WhiteElo "2643"]
[BlackElo "2525"]
[Result "1-0"]
[Round "04"]
[TimeControl "180+1"]
[Date "2021.10.05"]
[WhiteClock "0:01:33"]
[BlackClock "0:00:49"]

1. Nf3 {[%clk 0:03:00]}  d5 {[%clk 0:03:00]} 2. e3 {[%clk 0:02:59]}  Nf6 {[%clk 0:03:00]} 3. c4 {[%clk 0:02:59]}  c6 {[%clk 0:03:00]} 4. Nc3 {[%clk 0:02:59]}  e6 {[%clk 0:02:59]} 5. b3 {[%clk 0:02:59]}  Nbd7 {[%clk 0:02:59]} 6. Bb2 {[%clk 0:02:58]}  Bd6 {[%clk 0:02:59]} 7. Qc2 {[%clk 0:02:57]}  O-O {[%clk 0:02:59]} 8. Rg1 {[%clk 0:02:57]}  dxc4 {[%clk 0:02:51]} 9. bxc4 {[%clk 0:02:55]}  Ne5 {[%clk 0:02:37]} 10. d4 {[%clk 0:02:35]}  Nxf3+ {[%clk 0:02:33]} 11. gxf3 {[%clk 0:02:36]}  Re8 {[%clk 0:02:27]} 12. O-O-O {[%clk 0:02:36]}  Qa5 {[%clk 0:02:18]} 13. c5 {[%clk 0:02:33]}  Bf8 {[%clk 0:02:18]} 14. Bd3 {[%clk 0:02:19]}  Bd7 {[%clk 0:01:52]} 15. e4 {[%clk 0:02:05]}  g6 {[%clk 0:01:51]} 16. e5 {[%clk 0:02:03]}  Nd5 {[%clk 0:01:51]} 17. Ne4 {[%clk 0:01:52]}  b6 {[%clk 0:01:46]} 18. Nf6+ {[%clk 0:01:48]}  Nxf6 {[%clk 0:01:46]} 19. exf6 {[%clk 0:01:48]}  Qxa2 {[%clk 0:01:08]} 20. Bxg6 {[%clk 0:01:43]}  fxg6 {[%clk 0:00:52]} 21. Rxg6+ {[%clk 0:01:42]}  Kh8 {[%clk 0:00:53]} 22. Rdg1 {[%clk 0:01:37]}  Bxc5 {[%clk 0:00:49]} 23. Rg7 {[%clk 0:01:33]} 1-0


[Site "https://www.chess.com"]

[Event "Titled Tuesday Blitz October 5 2021"]
[White "Iskusnyh, Sergei"]
[Black "Dzhaparov, Medet"]
[WhiteFideId "4120027"]
[BlackFideId "13803689"]
[WhiteElo "2492"]
[BlackElo "1702"]
[Result "0-1"]
[Round "04"]
[TimeControl "180+1"]
[Date "2021.10.05"]
[WhiteClock "0:00:03"]
[BlackClock "0:00:05"]

1. d4 {[%clk 0:03:00]}  Nf6 {[%clk 0:02:59]} 2. c4 {[%clk 0:03:01]}  g6 {[%clk 0:02:59]} 3. g3 {[%clk 0:03:01]}  Bg7 {[%clk 0:02:59]} 4. Bg2 {[%clk 0:03:02]}  d5 {[%clk 0:02:59]} 5. cxd5 {[%clk 0:03:01]}  Nxd5 {[%clk 0:02:59]} 6. Nf3 {[%clk 0:03:02]}  O-O {[%clk 0:02:59]} 7. O-O {[%clk 0:03:01]}  c5 {[%clk 0:02:59]} 8. e4 {[%clk 0:03:00]}  Nf6 {[%clk 0:02:59]} 9. e5 {[%clk 0:03:00]}  Nd5 {[%clk 0:02:59]} 10. dxc5 {[%clk 0:02:59]}  Nc6 {[%clk 0:02:59]} 11. Qe2 {[%clk 0:02:48]}  Bg4 {[%clk 0:02:46]} 12. Qe4 {[%clk 0:02:31]}  Bxf3 {[%clk 0:02:35]} 13. Bxf3 {[%clk 0:02:29]}  e6 {[%clk 0:02:35]} 14. Nc3 {[%clk 0:01:46]}  Nxc3 {[%clk 0:02:33]} 15. bxc3 {[%clk 0:01:47]}  Nxe5 {[%clk 0:02:23]} 16. Bg2 {[%clk 0:01:45]}  Qa5 {[%clk 0:01:58]} 17. Be3 {[%clk 0:01:17]}  Nc6 {[%clk 0:01:29]} 18. Rab1 {[%clk 0:01:15]}  Rab8 {[%clk 0:01:29]} 19. Bf4 {[%clk 0:00:41]}  e5 {[%clk 0:01:25]} 20. Be3 {[%clk 0:00:41]}  Qxa2 {[%clk 0:01:14]} 21. Rfd1 {[%clk 0:00:31]}  Qa5 {[%clk 0:00:40]} 22. Qc4 {[%clk 0:00:30]}  e4 {[%clk 0:00:33]} 23. Bf4 {[%clk 0:00:21]}  Rbc8 {[%clk 0:00:18]} 24. Rxb7 {[%clk 0:00:18]}  Qxc3 {[%clk 0:00:17]} 25. Qxc3 {[%clk 0:00:18]}  Bxc3 {[%clk 0:00:18]} 26. Bxe4 {[%clk 0:00:18]}  Nd4 {[%clk 0:00:19]} 27. Kg2 {[%clk 0:00:14]}  Ne6 {[%clk 0:00:10]} 28. Bd6 {[%clk 0:00:14]}  Rfd8 {[%clk 0:00:10]} 29. Rc1 {[%clk 0:00:11]}  Bd4 {[%clk 0:00:09]} 30. Bd5 {[%clk 0:00:10]}  Rxd6 {[%clk 0:00:06]} 31. cxd6 {[%clk 0:00:09]}  Rxc1 {[%clk 0:00:07]} 32. d7 {[%clk 0:00:06]}  Bf6 {[%clk 0:00:07]} 33. Bxe6 {[%clk 0:00:06]}  fxe6 {[%clk 0:00:07]} 34. Rb8+ {[%clk 0:00:06]}  Kf7 {[%clk 0:00:07]} 35. d8=Q {[%clk 0:00:06]}  Bxd8 {[%clk 0:00:07]} 36. Rxd8 {[%clk 0:00:07]}  Rc7 {[%clk 0:00:07]} 37. h4 {[%clk 0:00:04]}  h5 {[%clk 0:00:05]} 38. Kf3 {[%clk 0:00:04]}  Kf6 {[%clk 0:00:06]} 39. Kf4 {[%clk 0:00:03]}  Rc4+ {[%clk 0:00:06]} 40. Ke3 {[%clk 0:00:03]}  Ra4 {[%clk 0:00:06]} 41. Rd7 {[%clk 0:00:03]}  a5 {[%clk 0:00:05]} 42. Ra7 {[%clk 0:00:03]}  Ke5 {[%clk 0:00:05]} 43. Ra6 {[%clk 0:00:02]}  Ra3+ {[%clk 0:00:05]} 44. Ke2 {[%clk 0:00:03]}  a4 {[%clk 0:00:05]} 0-1


[Site "https://www.chess.com"]

[Event "Titled Tuesday Blitz October 5 2021"]
[White "Ivanisevic, Ivan"]
[Black "Maksimenko, Viktor"]
[WhiteFideId "912417"]
[BlackFideId "13710478"]
[WhiteElo "2499"]
[BlackElo "2269"]
[Result "1-0"]
[Round "04"]
[TimeControl "180+1"]
[Date "2021.10.05"]
[WhiteClock "0:01:22"]
[BlackClock "0:00:04"]

1. c4 {[%clk 0:03:00]}  e5 {[%clk 0:02:59]} 2. Nc3 {[%clk 0:03:01]}  Bb4 {[%clk 0:03:00]} 3. Nd5 {[%clk 0:03:00]}  Be7 {[%clk 0:02:54]} 4. d4 {[%clk 0:02:58]}  exd4 {[%clk 0:02:48]} 5. Qxd4 {[%clk 0:02:57]}  Nf6 {[%clk 0:02:45]} 6. Nxe7 {[%clk 0:02:54]}  Qxe7 {[%clk 0:02:46]} 7. Bg5 {[%clk 0:02:50]}  Nc6 {[%clk 0:02:40]} 8. Qc3 {[%clk 0:02:48]}  d6 {[%clk 0:02:40]} 9. Bxf6 {[%clk 0:02:47]}  Qxf6 {[%clk 0:02:41]} 10. Qxf6 {[%clk 0:02:45]}  gxf6 {[%clk 0:02:36]} 11. e3 {[%clk 0:02:46]}  Be6 {[%clk 0:02:24]} 12. O-O-O {[%clk 0:02:45]}  O-O-O {[%clk 0:02:24]} 13. b3 {[%clk 0:02:34]}  Rhg8 {[%clk 0:02:21]} 14. Ne2 {[%clk 0:02:34]}  Ne5 {[%clk 0:02:17]} 15. Nf4 {[%clk 0:02:33]}  Kd7 {[%clk 0:02:06]} 16. h3 {[%clk 0:02:32]}  Ke7 {[%clk 0:02:06]} 17. Be2 {[%clk 0:02:32]}  Ng6 {[%clk 0:02:05]} 18. Nh5 {[%clk 0:02:29]}  a5 {[%clk 0:01:48]} 19. Kb2 {[%clk 0:02:28]}  b6 {[%clk 0:01:47]} 20. g4 {[%clk 0:02:27]}  Nh4 {[%clk 0:01:44]} 21. Rhg1 {[%clk 0:02:21]}  h6 {[%clk 0:01:42]} 22. Rg3 {[%clk 0:02:03]}  f5 {[%clk 0:01:36]} 23. Rdg1 {[%clk 0:02:02]}  f6 {[%clk 0:01:29]} 24. Nf4 {[%clk 0:02:00]}  Bf7 {[%clk 0:01:24]} 25. Bd3 {[%clk 0:01:59]}  fxg4 {[%clk 0:01:11]} 26. hxg4 {[%clk 0:01:59]}  Ng6 {[%clk 0:01:11]} 27. Bxg6 {[%clk 0:01:57]}  Bxg6 {[%clk 0:01:12]} 28. Nd5+ {[%clk 0:01:57]}  Kf7 {[%clk 0:01:03]} 29. Nxc7 {[%clk 0:01:56]}  Be4 {[%clk 0:00:53]} 30. Nb5 {[%clk 0:01:53]}  Bc6 {[%clk 0:00:52]} 31. Nd4 {[%clk 0:01:51]}  Bd7 {[%clk 0:00:52]} 32. e4 {[%clk 0:01:48]}  Rg6 {[%clk 0:00:48]} 33. f3 {[%clk 0:01:34]}  Rdg8 {[%clk 0:00:43]} 34. Rh3 {[%clk 0:01:34]}  Kg7 {[%clk 0:00:39]} 35. Rgh1 {[%clk 0:01:34]}  Kh7 {[%clk 0:00:38]} 36. Kc3 {[%clk 0:01:34]}  a4 {[%clk 0:00:34]} 37. Ne2 {[%clk 0:01:31]}  b5 {[%clk 0:00:14]} 38. Nf4 {[%clk 0:01:29]}  Rc8 {[%clk 0:00:06]} 39. Nxg6 {[%clk 0:01:28]}  Kxg6 {[%clk 0:00:06]} 40. Rxh6+ {[%clk 0:01:27]}  Kg5 {[%clk 0:00:07]} 41. R1h5+ {[%clk 0:01:27]}  Kf4 {[%clk 0:00:07]} 42. Rxf6+ {[%clk 0:01:28]}  Ke3 {[%clk 0:00:06]} 43. Rxd6 {[%clk 0:01:27]}  Be8 {[%clk 0:00:06]} 44. Rf5 {[%clk 0:01:25]}  bxc4 {[%clk 0:00:03]} 45. bxc4 {[%clk 0:01:25]}  a3 {[%clk 0:00:04]} 46. g5 {[%clk 0:01:22]} 1-0


[Site "https://www.chess.com"]

[Event "Titled Tuesday Blitz October 5 2021"]
[White "Jaracz, Pawel"]
[Black "Omariev, Maksim"]
[WhiteFideId "1102222"]
[BlackFideId "4193423"]
[WhiteElo "2495"]
[BlackElo "2464"]
[Result "0-1"]
[Round "04"]
[TimeControl "180+1"]
[Date "2021.10.05"]
[WhiteClock "0:01:52"]
[BlackClock "0:00:54"]

1. d4 {[%clk 0:03:00]}  d5 {[%clk 0:02:56]} 2. c4 {[%clk 0:03:00]}  e6 {[%clk 0:02:54]} 3. Nc3 {[%clk 0:03:00]}  Nf6 {[%clk 0:02:54]} 4. cxd5 {[%clk 0:03:00]}  exd5 {[%clk 0:02:54]} 5. Bg5 {[%clk 0:03:00]}  c6 {[%clk 0:02:54]} 6. e3 {[%clk 0:03:00]}  Be7 {[%clk 0:02:52]} 7. Bd3 {[%clk 0:02:58]}  Bg4 {[%clk 0:02:51]} 8. Qc2 {[%clk 0:02:55]}  Bh5 {[%clk 0:02:51]} 9. Nh3 {[%clk 0:02:54]}  Bg6 {[%clk 0:02:51]} 10. Nf4 {[%clk 0:02:51]}  Bxd3 {[%clk 0:02:49]} 11. Qxd3 {[%clk 0:02:50]}  Nbd7 {[%clk 0:02:40]} 12. O-O {[%clk 0:02:49]}  h6 {[%clk 0:02:40]} 13. Bxf6 {[%clk 0:02:47]}  Nxf6 {[%clk 0:02:41]} 14. Rab1 {[%clk 0:02:45]}  O-O {[%clk 0:02:27]} 15. b4 {[%clk 0:02:45]}  a6 {[%clk 0:02:27]} 16. a4 {[%clk 0:02:44]}  Bd6 {[%clk 0:02:27]} 17. Nfe2 {[%clk 0:02:40]}  b5 {[%clk 0:02:22]} 18. Rfc1 {[%clk 0:02:38]}  Qe7 {[%clk 0:02:20]} 19. Ng3 {[%clk 0:02:36]}  g6 {[%clk 0:02:15]} 20. Na2 {[%clk 0:02:36]}  Rfc8 {[%clk 0:02:10]} 21. a5 {[%clk 0:02:32]}  Ne8 {[%clk 0:02:01]} 22. Rc3 {[%clk 0:02:29]}  Bxg3 {[%clk 0:01:50]} 23. hxg3 {[%clk 0:02:29]}  Nd6 {[%clk 0:01:51]} 24. Nc1 {[%clk 0:02:27]}  Nc4 {[%clk 0:01:41]} 25. Rc2 {[%clk 0:02:27]}  h5 {[%clk 0:01:29]} 26. Qe2 {[%clk 0:02:24]}  Na3 {[%clk 0:01:27]} 27. Nd3 {[%clk 0:02:23]}  Nxb1 {[%clk 0:01:24]} 28. Ne5 {[%clk 0:02:11]}  Na3 {[%clk 0:01:15]} 29. Rc5 {[%clk 0:02:08]}  Qe6 {[%clk 0:01:08]} 30. e4 {[%clk 0:02:06]}  Nc4 {[%clk 0:01:05]} 31. Nxc4 {[%clk 0:02:01]}  bxc4 {[%clk 0:01:01]} 32. e5 {[%clk 0:01:57]}  Rab8 {[%clk 0:01:00]} 33. Qd2 {[%clk 0:01:56]}  Rb7 {[%clk 0:00:55]} 34. f3 {[%clk 0:01:52]}  Rcb8 {[%clk 0:00:54]} 0-1


[Site "https://www.chess.com"]

[Event "Titled Tuesday Blitz October 5 2021"]
[White "Kabanov, Nikolai"]
[Black "Khoroshev, Nikita"]
[WhiteFideId "4127820"]
[BlackFideId "14200287"]
[WhiteElo "2303"]
[BlackElo "2376"]
[Result "1/2-1/2"]
[Round "04"]
[TimeControl "180+1"]
[Date "2021.10.05"]
[WhiteClock "0:00:05"]
[BlackClock "0:00:02"]

1. e4 {[%clk 0:03:00]}  e5 {[%clk 0:02:47]} 2. Nf3 {[%clk 0:03:00]}  Nc6 {[%clk 0:02:45]} 3. Bc4 {[%clk 0:02:59]}  Bc5 {[%clk 0:02:04]} 4. c3 {[%clk 0:02:59]}  Nf6 {[%clk 0:02:01]} 5. d4 {[%clk 0:02:59]}  exd4 {[%clk 0:02:01]} 6. cxd4 {[%clk 0:03:00]}  Bb4+ {[%clk 0:02:01]} 7. Bd2 {[%clk 0:03:01]}  Bxd2+ {[%clk 0:01:42]} 8. Nbxd2 {[%clk 0:03:02]}  d6 {[%clk 0:01:42]} 9. O-O {[%clk 0:02:57]}  O-O {[%clk 0:01:42]} 10. Re1 {[%clk 0:02:53]}  Bg4 {[%clk 0:01:39]} 11. h3 {[%clk 0:02:52]}  Bh5 {[%clk 0:01:39]} 12. Qb3 {[%clk 0:02:42]}  Na5 {[%clk 0:01:38]} 13. Qc3 {[%clk 0:02:42]}  Nxc4 {[%clk 0:01:37]} 14. Qxc4 {[%clk 0:02:43]}  c6 {[%clk 0:01:36]} 15. Rac1 {[%clk 0:02:37]}  Re8 {[%clk 0:01:33]} 16. d5 {[%clk 0:02:16]}  Rc8 {[%clk 0:01:28]} 17. dxc6 {[%clk 0:01:55]}  Rxc6 {[%clk 0:01:29]} 18. Qb3 {[%clk 0:01:40]}  Rxc1 {[%clk 0:01:06]} 19. Rxc1 {[%clk 0:01:40]}  Nxe4 {[%clk 0:01:06]} 20. Nxe4 {[%clk 0:01:38]}  Rxe4 {[%clk 0:01:07]} 21. Qxb7 {[%clk 0:01:37]}  Re8 {[%clk 0:01:06]} 22. Nd4 {[%clk 0:01:19]}  h6 {[%clk 0:00:56]} 23. Qxa7 {[%clk 0:01:14]}  Qg5 {[%clk 0:00:54]} 24. Qc7 {[%clk 0:00:58]}  Re4 {[%clk 0:00:33]} 25. Qc8+ {[%clk 0:00:57]}  Kh7 {[%clk 0:00:28]} 26. Qf5+ {[%clk 0:00:55]}  Qxf5 {[%clk 0:00:26]} 27. Nxf5 {[%clk 0:00:56]}  Bg6 {[%clk 0:00:23]} 28. Nxd6 {[%clk 0:00:52]}  Re2 {[%clk 0:00:20]} 29. Nc4 {[%clk 0:00:48]}  Bd3 {[%clk 0:00:20]} 30. Nd6 {[%clk 0:00:19]}  Rxb2 {[%clk 0:00:18]} 31. Ra1 {[%clk 0:00:20]}  Kg6 {[%clk 0:00:15]} 32. a4 {[%clk 0:00:20]}  Rb6 {[%clk 0:00:13]} 33. Nc8 {[%clk 0:00:19]}  Rb8 {[%clk 0:00:11]} 34. Rd1 {[%clk 0:00:17]}  Bc2 {[%clk 0:00:09]} 35. Rd6+ {[%clk 0:00:17]}  f6 {[%clk 0:00:08]} 36. Nb6 {[%clk 0:00:17]}  Re8 {[%clk 0:00:05]} 37. a5 {[%clk 0:00:17]}  Re1+ {[%clk 0:00:05]} 38. Kh2 {[%clk 0:00:17]}  Ra1 {[%clk 0:00:05]} 39. Rd5 {[%clk 0:00:15]}  Bb3 {[%clk 0:00:04]} 40. Rb5 {[%clk 0:00:15]}  Be6 {[%clk 0:00:04]} 41. Na8 {[%clk 0:00:13]}  Bd7 {[%clk 0:00:04]} 42. Rc5 {[%clk 0:00:12]}  Ra2 {[%clk 0:00:04]} 43. Kg3 {[%clk 0:00:11]}  h5 {[%clk 0:00:03]} 44. Nc7 {[%clk 0:00:09]}  Kf7 {[%clk 0:00:03]} 45. a6 {[%clk 0:00:09]}  g5 {[%clk 0:00:02]} 46. Rc4 {[%clk 0:00:06]}  h4+ {[%clk 0:00:03]} 47. Kh2 {[%clk 0:00:05]}  Be6 {[%clk 0:00:04]} 48. Rb4 {[%clk 0:00:05]}  Bf5 {[%clk 0:00:03]} 49. Rb7 {[%clk 0:00:05]}  Be4 {[%clk 0:00:03]} 50. Nd5+ {[%clk 0:00:04]}  Ke6 {[%clk 0:00:03]} 51. Nc7+ {[%clk 0:00:03]}  Kd6 {[%clk 0:00:02]} 52. Ra7 {[%clk 0:00:02]}  Kc6 {[%clk 0:00:03]} 53. Ne8 {[%clk 0:00:02]}  Kb6 {[%clk 0:00:04]} 54. Rf7 {[%clk 0:00:02]}  Bd5 {[%clk 0:00:03]} 55. Rxf6+ {[%clk 0:00:02]}  Kc5 {[%clk 0:00:04]} 56. Nc7 {[%clk 0:00:02]}  Bc6 {[%clk 0:00:04]} 57. Ne6+ {[%clk 0:00:02]}  Kd5 {[%clk 0:00:04]} 58. Nxg5 {[%clk 0:00:03]}  Ra5 {[%clk 0:00:04]} 59. f4 {[%clk 0:00:02]}  Rxa6 {[%clk 0:00:04]} 60. Nf3 {[%clk 0:00:02]}  Ra2 {[%clk 0:00:04]} 61. Rf5+ {[%clk 0:00:02]}  Ke4 {[%clk 0:00:04]} 62. Rh5 {[%clk 0:00:03]}  Kxf4 {[%clk 0:00:03]} 63. Rxh4+ {[%clk 0:00:03]}  Ke3 {[%clk 0:00:04]} 64. Rh6 {[%clk 0:00:02]}  Bxf3 {[%clk 0:00:04]} 65. Re6+ {[%clk 0:00:02]}  Kd4 {[%clk 0:00:04]} 66. Rg6 {[%clk 0:00:03]}  Be4 {[%clk 0:00:04]} 67. h4 {[%clk 0:00:02]}  Ke5 {[%clk 0:00:05]} 68. Rg5+ {[%clk 0:00:02]}  Kf4 {[%clk 0:00:05]} 69. Rg3 {[%clk 0:00:03]}  Bf5 {[%clk 0:00:04]} 70. h5 {[%clk 0:00:03]}  Ke5 {[%clk 0:00:05]} 71. Rf3 {[%clk 0:00:02]}  Ra6 {[%clk 0:00:06]} 72. Re3+ {[%clk 0:00:03]}  Be4 {[%clk 0:00:07]} 73. Rg3 {[%clk 0:00:03]}  Rh6 {[%clk 0:00:07]} 74. Rg5+ {[%clk 0:00:04]}  Kf4 {[%clk 0:00:07]} 75. Ra5 {[%clk 0:00:04]}  Bf5 {[%clk 0:00:08]} 76. g3+ {[%clk 0:00:04]}  Kg4 {[%clk 0:00:07]} 77. Kg2 {[%clk 0:00:05]}  Rxh5 {[%clk 0:00:06]} 78. Ra4+ {[%clk 0:00:04]}  Kg5 {[%clk 0:00:07]} 79. Ra5 {[%clk 0:00:04]}  Rh6 {[%clk 0:00:06]} 80. Kf3 {[%clk 0:00:04]}  Kf6 {[%clk 0:00:03]} 81. g4 {[%clk 0:00:04]}  Bxg4+ {[%clk 0:00:02]} 82. Kxg4 {[%clk 0:00:04]}  Rg6+ {[%clk 0:00:03]} 83. Kf4 {[%clk 0:00:04]}  Kg7 {[%clk 0:00:03]} 84. Rg5 {[%clk 0:00:04]}  Rxg5 {[%clk 0:00:02]} 85. Kxg5 {[%clk 0:00:05]} 1/2-1/2


[Site "https://www.chess.com"]

[Event "Titled Tuesday Blitz October 5 2021"]
[White "Kezin, Roman"]
[Black "Sarana, Alexey"]
[WhiteFideId "24124621"]
[BlackFideId "24133795"]
[WhiteElo "2557"]
[BlackElo "2671"]
[Result "0-1"]
[Round "04"]
[TimeControl "180+1"]
[Date "2021.10.05"]
[WhiteClock "0:00:09"]
[BlackClock "0:01:30"]

1. Nf3 {[%clk 0:03:00]}  d5 {[%clk 0:02:59]} 2. e3 {[%clk 0:02:59]}  Nf6 {[%clk 0:03:00]} 3. c4 {[%clk 0:03:00]}  e6 {[%clk 0:03:00]} 4. Nc3 {[%clk 0:02:59]}  dxc4 {[%clk 0:02:57]} 5. Bxc4 {[%clk 0:02:59]}  a6 {[%clk 0:02:58]} 6. O-O {[%clk 0:02:49]}  b5 {[%clk 0:02:57]} 7. Be2 {[%clk 0:02:49]}  Bb7 {[%clk 0:02:55]} 8. a4 {[%clk 0:02:46]}  b4 {[%clk 0:02:55]} 9. Nb1 {[%clk 0:02:46]}  c5 {[%clk 0:02:55]} 10. d3 {[%clk 0:02:47]}  Be7 {[%clk 0:02:54]} 11. Nbd2 {[%clk 0:02:48]}  O-O {[%clk 0:02:55]} 12. b3 {[%clk 0:02:48]}  Nd5 {[%clk 0:02:52]} 13. Bb2 {[%clk 0:02:40]}  Bf6 {[%clk 0:02:52]} 14. Ne5 {[%clk 0:02:32]}  Nd7 {[%clk 0:02:43]} 15. Nxd7 {[%clk 0:02:13]}  Bxb2 {[%clk 0:02:37]} 16. Nxf8 {[%clk 0:02:13]}  Nc3 {[%clk 0:02:37]} 17. Qe1 {[%clk 0:02:13]}  Bxa1 {[%clk 0:02:35]} 18. Nxe6 {[%clk 0:01:17]}  fxe6 {[%clk 0:02:33]} 19. Bg4 {[%clk 0:01:17]}  Qxd3 {[%clk 0:02:13]} 20. Nc4 {[%clk 0:01:05]}  Bd5 {[%clk 0:01:58]} 21. Nb6 {[%clk 0:00:41]}  Rf8 {[%clk 0:01:55]} 22. Nxd5 {[%clk 0:00:26]}  Qxd5 {[%clk 0:01:56]} 23. Qxa1 {[%clk 0:00:23]}  Qxb3 {[%clk 0:01:56]} 24. a5 {[%clk 0:00:17]}  Qc4 {[%clk 0:01:56]} 25. Bf3 {[%clk 0:00:17]}  b3 {[%clk 0:01:53]} 26. Qb2 {[%clk 0:00:13]}  Na4 {[%clk 0:01:38]} 27. Qe5 {[%clk 0:00:13]}  b2 {[%clk 0:01:37]} 28. Be4 {[%clk 0:00:10]}  Nc3 {[%clk 0:01:34]} 29. Bb1 {[%clk 0:00:09]}  Ne2+ {[%clk 0:01:30]} 0-1


[Site "https://www.chess.com"]

[Event "Titled Tuesday Blitz October 5 2021"]
[White "Khusnutdinov, Rustam"]
[Black "Hambleton, Aman"]
[WhiteFideId "13701703"]
[BlackFideId "2606577"]
[WhiteElo "2571"]
[BlackElo "2552"]
[Result "1-0"]
[Round "04"]
[TimeControl "180+1"]
[Date "2021.10.05"]
[WhiteClock "0:01:39"]
[BlackClock "0:00:02"]

1. d4 {[%clk 0:03:00]}  Nf6 {[%clk 0:02:51]} 2. c4 {[%clk 0:02:58]}  e6 {[%clk 0:02:49]} 3. Nc3 {[%clk 0:02:58]}  Bb4 {[%clk 0:02:49]} 4. g3 {[%clk 0:02:59]}  d5 {[%clk 0:02:39]} 5. Bg2 {[%clk 0:02:58]}  O-O {[%clk 0:02:27]} 6. Nf3 {[%clk 0:02:53]}  dxc4 {[%clk 0:01:54]} 7. O-O {[%clk 0:02:53]}  Nc6 {[%clk 0:01:15]} 8. Qa4 {[%clk 0:02:52]}  Nd5 {[%clk 0:01:03]} 9. Qc2 {[%clk 0:02:51]}  Be7 {[%clk 0:00:52]} 10. e4 {[%clk 0:02:46]}  Ndb4 {[%clk 0:00:45]} 11. Qd1 {[%clk 0:02:31]}  Nd3 {[%clk 0:00:44]} 12. d5 {[%clk 0:02:15]}  exd5 {[%clk 0:00:36]} 13. Nxd5 {[%clk 0:02:16]}  Nxc1 {[%clk 0:00:31]} 14. Rxc1 {[%clk 0:02:13]}  Be6 {[%clk 0:00:18]} 15. Rxc4 {[%clk 0:02:13]}  Bxd5 {[%clk 0:00:05]} 16. Qxd5 {[%clk 0:02:09]}  Qxd5 {[%clk 0:00:01]} 17. exd5 {[%clk 0:02:09]}  Nb4 {[%clk 0:00:02]} 18. Rxc7 {[%clk 0:02:04]}  Bd6 {[%clk 0:00:02]} 19. Rxb7 {[%clk 0:02:04]}  Nxa2 {[%clk 0:00:02]} 20. Nd4 {[%clk 0:02:03]}  Rfb8 {[%clk 0:00:02]} 21. Rd7 {[%clk 0:01:58]}  Rd8 {[%clk 0:00:02]} 22. Rxd8+ {[%clk 0:01:56]}  Rxd8 {[%clk 0:00:03]} 23. Ra1 {[%clk 0:01:56]}  Nb4 {[%clk 0:00:02]} 24. Rxa7 {[%clk 0:01:53]}  Bc5 {[%clk 0:00:02]} 25. Rb7 {[%clk 0:01:54]}  Nxd5 {[%clk 0:00:01]} 26. Bxd5 {[%clk 0:01:53]}  Bxd4 {[%clk 0:00:01]} 27. Bxf7+ {[%clk 0:01:50]}  Kh8 {[%clk 0:00:01]} 28. Bc4 {[%clk 0:01:48]}  Rf8 {[%clk 0:00:01]} 29. Bf7 {[%clk 0:01:47]}  g5 {[%clk 0:00:01]} 30. b3 {[%clk 0:01:46]}  Bc5 {[%clk 0:00:01]} 31. Kg2 {[%clk 0:01:45]}  h6 {[%clk 0:00:01]} 32. f3 {[%clk 0:01:45]}  Kg7 {[%clk 0:00:01]} 33. Bd5+ {[%clk 0:01:45]}  Kf6 {[%clk 0:00:02]} 34. b4 {[%clk 0:01:42]}  Bd6 {[%clk 0:00:02]} 35. b5 {[%clk 0:01:39]}  Ke5 {[%clk 0:00:02]} 36. Bc6 {[%clk 0:01:39]} 1-0


[Site "https://www.chess.com"]